bitfinex-derivatives/quotes_BTCF0:USTF0_20251030
["timestamp","ask_amount","ask_price","bid_price","bid_amount"]
[1761832147553,0.58884409,107910.0,107900.0,0.06887631]
[1761832147756,0.58884409,107910.0,107900.0,0.09000631]
[1761832148259,0.58884409,107910.0,107900.0,0.50080276]
[1761832148260,0.007,107910.0,107900.0,0.50080276]
[1761832148752,0.007,107910.0,107900.0,0.46747645]
[1761832149062,0.36884409,107910.0,107900.0,0.50080081]
[1761832149266,0.59881642,107910.0,107900.0,0.04774436]
[1761832149760,0.95961642,107910.0,107900.0,0.03432436]
[1761832149962,0.95961642,107910.0,107900.0,0.05931949]
[1761832150161,0.95961642,107910.0,107900.0,0.07273949]
[1761832150357,1.30233642,107910.0,107900.0,0.03941513]
[1761832150760,1.30233642,107910.0,107900.0,0.07273949]
[1761832151961,1.30133642,107910.0,107900.0,0.07273949]
[1761832152362,1.29733642,107910.0,107900.0,0.07173949]
[1761832152661,1.06029233,107910.0,107900.0,0.08900436]
[1761832152852,1.29933642,107910.0,107900.0,0.08900436]
[1761832153058,0.93853642,107910.0,107900.0,0.44980436]
[1761832153265,0.93853642,107910.0,107900.0,0.13900081]
[1761832153562,1.30133642,107910.0,107900.0,0.04774436]
[1761832153953,1.30133642,107910.0,107900.0,0.06887436]
[1761832154452,0.94053642,107910.0,107900.0,0.50080081]
[1761832155052,0.94053642,107910.0,107900.0,0.09000436]
[1761832155266,1.30133642,107910.0,107900.0,0.09000436]
[1761832155559,1.30233642,107910.0,107900.0,0.06887436]
[1761832155764,1.30233642,107910.0,107900.0,0.04774436]
[1761832156370,1.30233642,107910.0,107900.0,0.08276747]
[1761832156862,1.30033642,107910.0,107900.0,0.11509183]
[1761832157062,1.30033642,107910.0,107900.0,0.09375183]
[1761832157565,1.30033642,107910.0,107900.0,0.09009436]
[1761832157765,1.29833642,107910.0,107900.0,0.09009436]
[1761832158066,0.69669233,107910.0,107900.0,0.45089436]
[1761832158266,0.83856409,107910.0,107900.0,0.45089436]
[1761832158467,0.83656409,107910.0,107900.0,0.45089436]
[1761832158666,0.83856409,107910.0,107900.0,0.45089436]
[1761832159066,0.83656409,107910.0,107900.0,0.09009436]
[1761832159363,0.59672,107910.0,107900.0,0.09009436]
[1761832159556,0.83856409,107910.0,107900.0,0.09009436]
[1761832159970,0.69669233,107910.0,107900.0,0.09009436]
[1761832160166,0.93853642,107910.0,107900.0,0.09009436]
[1761832160767,0.93853642,107910.0,107900.0,0.45089436]
[1761832160968,0.93653642,107910.0,107900.0,0.45089436]
[1761832161158,0.68853642,107910.0,107900.0,0.45089436]
[1761832161358,0.10397233,107910.0,107900.0,0.45089436]
[1761832161561,0.39370614,107940.0,107930.0,0.04454]
[1761832161864,1.43344409,107940.0,107920.0,0.08312278]
[1761832162067,0.60264409,107930.0,107920.0,0.08312278]
[1761832162263,0.24184409,107930.0,107920.0,0.08312278]
[1761832162465,0.86264409,107930.0,107920.0,0.08312278]
[1761832162668,0.50184409,107930.0,107920.0,0.08312278]
[1761832162857,1.66255443,107930.0,107920.0,0.03837278]
[1761832163063,1.16528676,107930.0,107910.0,0.02500278]
[1761832163373,0.60264409,107920.0,107910.0,0.02500278]
[1761832163571,0.54184409,107920.0,107910.0,0.02500278]
[1761832163873,0.3,107920.0,107910.0,0.10307714]
[1761832164067,0.88408409,107920.0,107910.0,0.02500278]
[1761832164269,0.88408409,107920.0,107910.0,0.04722278]
[1761832164467,0.39997233,107920.0,107910.0,0.06975278]
[1761832164669,0.15097233,107920.0,107910.0,0.07807436]
[1761832164968,0.021,107920.0,107910.0,0.43887436]
[1761832165165,0.021,107920.0,107910.0,0.07807436]
[1761832165367,0.052,107920.0,107910.0,0.43887436]
[1761832165560,0.022,107920.0,107910.0,0.43887436]
[1761832165960,0.002,107920.0,107910.0,0.43887436]
[1761832166575,0.022,107920.0,107910.0,0.43887436]
[1761832167273,0.002,107920.0,107910.0,0.45554645]
[1761832167475,0.022,107920.0,107910.0,0.45554645]
[1761832167775,0.29384409,107920.0,107910.0,0.09474645]
[1761832168076,0.66381642,107920.0,107910.0,0.12806824]
[1761832168464,0.12197233,107920.0,107910.0,0.48886824]
[1761832168672,0.36381642,107920.0,107910.0,0.50219537]
[1761832168878,0.36381642,107920.0,107910.0,0.04664892]
[1761832168879,1.59850051,107920.0,107910.0,0.04664892]
[1761832169177,0.0028,107910.0,107900.0,0.03332154]
[1761832169378,0.94264409,107910.0,107900.0,0.03332154]
[1761832169580,0.94264409,107910.0,107900.0,0.04669154]
[1761832170078,0.58184409,107910.0,107900.0,0.05812]
[1761832170266,0.68172674,107910.0,107900.0,0.05812]
[1761832170466,0.85172674,107910.0,107900.0,0.01337]
[1761832170872,1.21252674,107910.0,107900.0,0.01337]
[1761832171477,0.34988265,107910.0,107900.0,0.01337]
[1761832171678,0.54172674,107910.0,107900.0,0.03559]
[1761832171879,0.58088265,107910.0,107900.0,0.03559]
[1761832172080,0.82272674,107910.0,107900.0,0.03559]
[1761832172381,0.82272674,107910.0,107890.0,0.3608]
[1761832172576,0.58376409,107900.0,107890.0,0.40555]
[1761832172777,0.86376409,107900.0,107890.0,0.40555]
[1761832173080,0.62376409,107900.0,107890.0,0.40555]
[1761832173282,0.36192,107900.0,107890.0,0.40555]
[1761832173478,0.34192,107900.0,107890.0,0.40555]
[1761832173682,0.44189233,107900.0,107890.0,0.40555]
[1761832173882,0.36192,107900.0,107890.0,0.40555]
[1761832174085,0.86376409,107900.0,107880.0,0.41927]
[1761832174281,0.24184409,107890.0,107880.0,0.41927]
[1761832174478,0.55184409,107890.0,107880.0,0.41927]
[1761832174687,0.55184409,107890.0,107880.0,0.37452]
[1761832174982,0.31,107890.0,107880.0,0.05847]
[1761832175177,0.58668409,107900.0,107890.0,0.04475]
[1761832175371,0.91668409,107900.0,107880.0,0.39674]
[1761832175584,0.24184409,107890.0,107880.0,0.41927]
[1761832175780,0.02,107890.0,107880.0,0.41927]
[1761832176079,0.34484,107900.0,107890.0,0.04475]
[1761832176286,1.0865944,107900.0,107890.0,0.40555]
[1761832176582,1.54636673,107900.0,107880.0,0.41927]
[1761832176786,0.24184409,107890.0,107880.0,0.41927]
[1761832176980,0.68565642,107900.0,107880.0,0.41927]
[1761832177286,0.99365642,107900.0,107890.0,0.04475]
[1761832177583,0.99565642,107900.0,107890.0,0.02222]
[1761832178081,0.99465642,107900.0,107890.0,0.02222]
[1761832178285,1.19656673,107900.0,107890.0,0.02222]
[1761832178677,1.19756673,107900.0,107890.0,0.02222]
[1761832178877,1.19756673,107900.0,107890.0,0.40555]
[1761832179080,1.19756673,107900.0,107890.0,0.02222]
[1761832179288,1.56036673,107900.0,107890.0,0.02222]
[1761832179584,1.57316673,107900.0,107880.0,0.01337]
[1761832179790,0.24184409,107890.0,107880.0,0.01337]
[1761832179984,0.54184409,107890.0,107880.0,0.01337]
[1761832180687,0.88352409,107890.0,107880.0,0.01337]
[1761832180988,0.98349642,107890.0,107880.0,0.05812]
[1761832181381,0.98349642,107890.0,107880.0,0.41892]
[1761832181582,0.96349642,107890.0,107880.0,0.41892]
[1761832181787,0.74165233,107890.0,107880.0,0.41892]
[1761832181983,0.74465233,107890.0,107880.0,0.41892]
[1761832182385,0.98649642,107890.0,107880.0,0.41892]
[1761832182586,0.98649642,107890.0,107880.0,0.01337]
[1761832182787,0.98649642,107890.0,107880.0,0.05812]
[1761832183692,0.98649642,107890.0,107870.0,0.3608]
[1761832183890,0.24184409,107880.0,107870.0,0.38302]
[1761832184194,1.04729642,107890.0,107880.0,0.05812]
[1761832184395,0.99649642,107890.0,107880.0,0.05812]
[1761832184585,0.65481642,107890.0,107880.0,0.05812]
[1761832184785,0.99637642,107890.0,107880.0,0.05812]
[1761832184986,0.99337642,107890.0,107880.0,0.05812]
[1761832185181,0.75153233,107890.0,107880.0,0.01337]
[1761832185386,1.55408672,107890.0,107880.0,0.01337]
[1761832186290,2.17331613,107890.0,107860.0,0.41824]
[1761832186596,2.17331613,107890.0,107860.0,0.37349]
[1761832186597,0.24184409,107870.0,107860.0,0.37349]
[1761832186784,0.86332409,107870.0,107860.0,0.39571]
[1761832186982,0.35204583,107890.0,107880.0,0.03559]
[1761832187185,0.97352583,107890.0,107880.0,0.03559]
[1761832187595,0.97352583,107890.0,107880.0,0.05812]
[1761832187596,0.63104583,107890.0,107880.0,0.05812]
[1761832187895,0.97248583,107890.0,107880.0,0.05812]
[1761832188290,0.97348583,107890.0,107880.0,0.05812]
[1761832188483,0.73164174,107890.0,107880.0,0.05812]
[1761832188689,0.97548583,107890.0,107880.0,0.05812]
[1761832189092,0.97828583,107890.0,107880.0,0.01337]
[1761832189286,1.33628583,107890.0,107870.0,0.3608]
[1761832189502,0.24184409,107880.0,107870.0,0.38302]
[1761832189697,0.52184409,107880.0,107870.0,0.40555]
[1761832190397,0.62136,107880.0,107870.0,0.40555]
[1761832190694,0.46133233,107880.0,107870.0,0.40555]
[1761832190893,0.66136,107880.0,107870.0,0.40555]
[1761832191094,0.90320409,107880.0,107870.0,0.40555]
[1761832191698,0.39136,107880.0,107870.0,0.40555]
[1761832192096,0.65136,107880.0,107870.0,0.04475]
[1761832192301,0.65136,107880.0,107870.0,0.40555]
[1761832192505,0.89320409,107880.0,107870.0,0.40555]
[1761832192697,1.25400409,107880.0,107860.0,0.39483]
[1761832193006,0.24184409,107870.0,107860.0,0.39483]
[1761832193191,0.57184409,107870.0,107860.0,0.39483]
[1761832193398,0.6118735,107890.0,107880.0,0.05684]
[1761832193706,1.01557053,107890.0,107880.0,0.05684]
[1761832194002,0.32911203,107890.0,107880.0,0.05684]
[1761832194303,0.5703797,107890.0,107880.0,0.05684]
[1761832194508,0.8132238,107890.0,107880.0,0.05684]
[1761832194696,0.8132238,107890.0,107880.0,0.41764]
[1761832195004,0.57133971,107890.0,107880.0,0.41764]
[1761832195212,0.60133971,107890.0,107880.0,0.41764]
[1761832195702,0.86133971,107890.0,107880.0,0.05684]
[1761832195912,1.1031838,107890.0,107880.0,0.05684]
[1761832196107,1.20315613,107890.0,107880.0,0.01317]
[1761832196503,1.20515613,107890.0,107880.0,0.01317]
[1761832198109,1.56595613,107890.0,107880.0,0.01317]
[1761832198807,1.56875613,107890.0,107870.0,0.3608]
[1761832199110,0.24184409,107880.0,107870.0,0.3608]
[1761832199319,0.58184409,107880.0,107870.0,0.03329628]
[1761832199515,0.31211204,107890.0,107880.0,0.03451]
[1761832199812,1.54583613,107890.0,107880.0,0.01317]
[1761832200020,1.54483613,107890.0,107880.0,0.01317]
[1761832200213,1.54483613,107890.0,107880.0,0.03451]
[1761832200406,0.84295613,107890.0,107880.0,0.41764]
[1761832200608,1.18399613,107890.0,107880.0,0.41764]
[1761832200807,1.18499613,107890.0,107880.0,0.41764]
[1761832201012,1.18779613,107890.0,107880.0,0.37397]
[1761832201315,1.18779613,107890.0,107870.0,0.03329628]
[1761832201316,1.54859613,107890.0,107870.0,0.03329628]
[1761832201516,0.24464409,107880.0,107870.0,0.03329628]
[1761832201716,0.54184409,107880.0,107870.0,0.43776628]
[1761832202316,0.74175439,107880.0,107870.0,0.43776628]
[1761832202514,0.1999103,107880.0,107870.0,0.43776628]
[1761832202826,0.1999103,107880.0,107870.0,1.29902647]
[1761832203019,0.19991031,107900.0,107890.0,0.02134]
[1761832203323,0.82307282,107920.0,107910.0,0.04367]
[1761832203525,0.27470873,107920.0,107910.0,0.76527]
[1761832203708,0.88747282,107920.0,107910.0,0.76527]
[1761832203916,1.07251267,107920.0,107910.0,0.3608]
[1761832204109,0.79500244,107920.0,107910.0,0.40447]
[1761832204419,0.79747282,107920.0,107910.0,0.04367]
[1761832204618,0.79747282,107920.0,107910.0,0.40447]
[1761832204821,0.79747282,107920.0,107910.0,0.04367]
[1761832205012,0.79747282,107920.0,107910.0,0.40447]
[1761832205322,0.75553905,107920.0,107910.0,0.04367]
[1761832205519,1.14011496,107920.0,107910.0,0.40547]
[1761832205720,0.73483032,107920.0,107910.0,0.40547]
[1761832205915,0.73083032,107920.0,107910.0,0.40447]
[1761832206123,0.74213156,107920.0,107910.0,0.40447]
[1761832206515,0.74713156,107920.0,107910.0,0.40547]
[1761832207021,1.1524162,107920.0,107910.0,0.40547]
[1761832207223,0.57713156,107920.0,107910.0,0.40547]
[1761832207415,0.55613156,107920.0,107910.0,0.40447]
[1761832207825,0.57613156,107920.0,107910.0,0.40447]
[1761832208126,0.55613156,107920.0,107910.0,0.40447]
[1761832208422,0.006,107920.0,107910.0,1.24315244]
[1761832208623,0.36542873,107940.0,107930.0,0.02134]
[1761832208818,0.02470873,107940.0,107930.0,0.76527]
[1761832209018,0.02470873,107940.0,107930.0,1.10595]
[1761832209221,0.05761487,107950.0,107940.0,0.05684]
[1761832209415,0.05761487,107950.0,107940.0,0.41764]
[1761832209729,0.01728444,107970.0,107960.0,0.03451]
[1761832210022,0.14728444,107970.0,107960.0,0.41764]
[1761832210224,0.76256908,107970.0,107960.0,0.05684]
[1761832210526,0.02470873,108000.0,107990.0,0.04367]
[1761832210715,0.3406,108000.0,107990.0,0.76527]
[1761832211522,0.47251186,108020.0,108010.0,0.02134]
[1761832211731,0.96242227,108020.0,108010.0,0.02134]
[1761832211925,1.30298227,108020.0,108010.0,0.38214]
[1761832212228,1.30298227,108020.0,108010.0,0.40723]
[1761832212229,0.19991041,108020.0,108010.0,0.40723]
[1761832212618,0.79899078,108050.0,108020.0,0.04367]
[1761832212619,0.09414557,108030.0,108020.0,0.04367]
[1761832212820,0.34052,108030.0,108020.0,0.82568464]
[1761832213118,0.55632,108070.0,108050.0,0.04367]
[1761832213119,0.67239226,108070.0,108050.0,0.04367]
[1761832213323,0.92467147,108070.0,108060.0,0.3608]
[1761832213529,1.26515147,108070.0,108060.0,0.3608]
[1761832213733,0.85986683,108070.0,108060.0,0.3608]
[1761832214029,0.0454,108050.0,108030.0,0.3608]
[1761832214223,0.80387464,108040.0,108030.0,0.3608]
[1761832214426,0.85287464,108040.0,108030.0,0.3608]
[1761832214728,1.47367464,108040.0,108010.0,0.3618]
[1761832214915,0.40728464,108030.0,108010.0,0.3608]
[1761832215121,0.3404,108020.0,108010.0,0.40388]
[1761832215316,0.5604,108020.0,108010.0,0.40388]
[1761832215514,0.002,108030.0,108020.0,0.04308]
[1761832215719,0.78158403,108030.0,108020.0,0.40388]
[1761832216018,0.58036,108030.0,108020.0,0.4196]
[1761832216215,0.58036,108030.0,108020.0,0.41684]
[1761832216420,0.34032,108030.0,108020.0,0.41684]
[1761832217127,0.34632,108030.0,108020.0,0.41684]
[1761832217522,0.34632,108030.0,108020.0,0.4196]
[1761832217723,0.006,108030.0,108020.0,0.82488464]
[1761832217929,0.2692,108030.0,108020.0,1.42488464]
[1761832218130,0.2692,108030.0,108020.0,1.0196]
[1761832218327,0.006,108030.0,108020.0,1.0196]
[1761832218529,0.006,108030.0,108020.0,0.82488464]
[1761832218825,0.34024,108040.0,108030.0,0.04308]
[1761832219017,1.33379464,108080.0,108040.0,0.00738]
[1761832219220,0.05616,108060.0,108050.0,0.3608]
[1761832219422,0.35616,108060.0,108050.0,0.3608]
[1761832219729,0.04327,108050.0,108040.0,0.3608]
[1761832219926,0.68343,108050.0,108040.0,0.3608]
[1761832220228,0.68343,108050.0,108030.0,0.40388]
[1761832220229,0.05227,108040.0,108030.0,0.40388]
[1761832220431,0.10227,108040.0,108030.0,0.40388]
[1761832221330,0.55912,108040.0,108030.0,0.40388]
[1761832221629,0.68012,108040.0,108030.0,0.40388]
[1761832221831,0.78005403,108040.0,108030.0,0.40388]
[1761832222129,0.66756,108040.0,108030.0,0.40388]
[1761832222332,0.09304,108040.0,108030.0,0.40388]
[1761832222535,0.70704,108040.0,108030.0,0.3608]
[1761832222729,1.11232464,108040.0,108030.0,0.3608]
[1761832223033,0.04504,108030.0,108020.0,0.40566]
[1761832223234,0.02248,108030.0,108020.0,0.40566]
[1761832223419,0.003,108040.0,108020.0,0.41347]
[1761832223731,0.213,108040.0,108030.0,0.40566]
[1761832224031,1.09128464,108040.0,108030.0,0.3608]
[1761832224325,0.78593403,108040.0,108030.0,0.3608]
[1761832224519,0.78293403,108040.0,108030.0,0.3608]
[1761832224923,0.77893403,108040.0,108030.0,0.3608]
[1761832225119,1.18621867,108040.0,108030.0,0.3608]
[1761832225321,1.18821867,108040.0,108030.0,0.3608]
[1761832225622,0.84821867,108040.0,108030.0,0.3608]
[1761832225823,0.78289403,108040.0,108030.0,0.3608]
[1761832226330,0.78289403,108040.0,108030.0,0.40566]
[1761832226532,0.334,108040.0,108030.0,0.40566]
[1761832226727,0.004,108040.0,108030.0,0.90351934]
[1761832226935,0.33992,108060.0,108050.0,0.04486]
[1761832227124,0.53983044,108060.0,108050.0,0.76646]
[1761832227525,0.56231044,108060.0,108050.0,0.76646]
[1761832227730,0.19991044,108060.0,108050.0,0.76646]
[1761832227929,0.53979044,108060.0,108050.0,0.76646]
[1761832228129,0.33988,108060.0,108050.0,0.76646]
[1761832228330,0.34888,108060.0,108050.0,0.76646]
[1761832228531,0.009,108060.0,108050.0,0.76646]
[1761832228834,0.34888,108060.0,108050.0,0.76646]
[1761832229232,0.34884,108060.0,108050.0,0.76922]
[1761832229441,0.34884,108060.0,108050.0,0.76646]
[1761832229928,0.009,108060.0,108050.0,0.76646]
[1761832230827,0.005,108060.0,108050.0,0.76746]
[1761832231032,0.04504,108070.0,108060.0,0.04486]
[1761832231234,0.53477403,108070.0,108060.0,0.40566]
[1761832231833,1.17005867,108070.0,108060.0,0.3608]
[1761832232034,0.04504,108060.0,108050.0,0.40966]
[1761832232222,0.33976,108060.0,108050.0,0.40966]
[1761832232423,0.05671,108080.0,108070.0,0.04486]
[1761832232633,0.41436921,108090.0,108080.0,0.04486]
[1761832232634,0.05412457,108090.0,108080.0,0.04486]
[1761832232831,0.07412457,108090.0,108080.0,0.04486]
[1761832233026,0.06504,108090.0,108080.0,0.40566]
[1761832233327,0.40476,108090.0,108080.0,0.40566]
[1761832233526,0.059,108080.0,108070.0,0.3608]
[1761832233838,0.04504,108070.0,108060.0,0.40566]
[1761832234034,0.66472,108070.0,108060.0,0.38244]
[1761832234431,0.66472,108070.0,108060.0,0.3608]
[1761832235238,1.16993867,108070.0,108060.0,0.3608]
[1761832235430,0.76465403,108070.0,108060.0,0.3608]
[1761832235631,0.53465403,108070.0,108060.0,0.3608]
[1761832235833,0.48465403,108070.0,108060.0,0.3608]
[1761832236340,0.77461403,108070.0,108060.0,0.3608]
[1761832237238,0.48461403,108070.0,108060.0,0.40566]
[1761832237827,0.14497403,108070.0,108060.0,0.40566]
[1761832238032,0.3846,108070.0,108060.0,0.40566]
[1761832238238,0.04504,108080.0,108070.0,0.04486]
[1761832238435,0.04504,108080.0,108070.0,0.40566]
[1761832238436,0.3846,108080.0,108070.0,0.40566]
[1761832238938,0.059,108080.0,108070.0,0.40566]
[1761832239237,0.39856,108080.0,108070.0,0.43022161]
[1761832239537,0.38456,108080.0,108070.0,0.43022161]
[1761832239726,1.01275,108100.0,108090.0,0.04486]
[1761832240034,2.04674966,108100.0,108090.0,0.3608]
[1761832241228,2.34659416,108100.0,108090.0,0.3608]
[1761832241536,0.04504,108080.0,108070.0,0.38536161]
[1761832241735,0.55848,108080.0,108070.0,0.38536161]
[1761832241930,0.67848,108080.0,108070.0,0.38536161]
[1761832242437,0.67848,108080.0,108070.0,0.43022161]
[1761832242438,0.39848,108080.0,108070.0,0.43022161]
[1761832242633,0.36192,108080.0,108070.0,0.43022161]
[1761832242837,0.02248,108080.0,108070.0,0.79102161]
[1761832243040,0.38448,108080.0,108070.0,0.79102161]
[1761832243232,0.36192,108080.0,108070.0,0.79102161]
[1761832243536,0.33944,108080.0,108070.0,0.79102161]
[1761832243938,0.34044,108080.0,108070.0,0.79102161]
[1761832244138,0.39944,108080.0,108070.0,0.79102161]
[1761832244337,0.41944,108080.0,108070.0,0.79102161]
[1761832244938,0.42044,108080.0,108070.0,0.79102161]
[1761832246043,0.04448,108080.0,108070.0,0.79102161]
[1761832246341,0.4064,108080.0,108070.0,0.79102161]
[1761832246840,0.42036,108080.0,108070.0,0.79102161]
[1761832247134,0.04448,108080.0,108070.0,0.79102161]
[1761832247339,0.36132,108080.0,108070.0,0.79102161]
[1761832248739,0.34132,108080.0,108070.0,0.79102161]
[1761832248937,0.002,108080.0,108070.0,0.79102161]
[1761832249244,0.36128,108080.0,108070.0,0.79973121]
[1761832249539,0.42028,108080.0,108070.0,0.79130149]
[1761832249944,0.74028,108080.0,108070.0,0.74644149]
[1761832250138,0.401,108080.0,108070.0,0.76808149]
[1761832250340,0.111,108080.0,108070.0,0.76646]
[1761832250539,0.06704,108080.0,108070.0,0.79973121]
[1761832250938,0.081,108080.0,108070.0,0.79973121]
[1761832251832,0.09704,108080.0,108070.0,0.79973121]
[1761832252033,0.1104,108080.0,108070.0,0.79973121]
[1761832252338,0.09704,108080.0,108070.0,0.79973121]
[1761832252741,0.052,108080.0,108070.0,0.79973121]
[1761832253041,0.10922,108080.0,108070.0,0.79973121]
[1761832253743,0.002,108080.0,108070.0,1.20501585]
[1761832253935,0.00092386,108080.0,108070.0,1.31695732]
[1761832254145,0.00092386,108080.0,108070.0,1.92622043]
[1761832254441,0.00092386,108080.0,108070.0,0.81637238]
[1761832254646,0.00092386,108080.0,108070.0,1.15549238]
[1761832255044,0.00092386,108080.0,108070.0,1.56077702]
[1761832255240,0.00092386,108080.0,108070.0,1.56353702]
[1761832255844,0.00092386,108080.0,108070.0,1.22165702]
[1761832256048,0.00092386,108080.0,108070.0,1.15545238]
[1761832256245,0.06478386,108080.0,108070.0,0.81637238]
[1761832256544,0.00092386,108080.0,108070.0,1.22165702]
[1761832256850,0.00092386,108080.0,108070.0,1.56069702]
[1761832257740,0.00092386,108080.0,108070.0,1.15541238]
[1761832258349,0.00092386,108080.0,108070.0,0.81637238]
[1761832258548,0.00092386,108080.0,108070.0,1.15537238]
[1761832259844,0.00092386,108080.0,108070.0,0.81637238]
[1761832260043,0.00092386,108080.0,108070.0,1.15537238]
[1761832260842,0.00092386,108080.0,108070.0,1.70546]
[1761832261040,0.00092386,108080.0,108070.0,1.70538]
[1761832261237,0.00092386,108080.0,108070.0,1.70814]
[1761832261544,0.00092386,108080.0,108070.0,2.11342464]
[1761832261746,0.00092386,108080.0,108070.0,2.11066464]
[1761832262136,0.00092386,108080.0,108070.0,1.60596534]
[1761832262448,0.00092386,108080.0,108070.0,1.51066464]
[1761832262645,0.00092386,108080.0,108070.0,1.10534]
[1761832262845,0.07814386,108080.0,108070.0,0.81636899]
[1761832263236,0.41702386,108080.0,108070.0,0.81636899]
[1761832263647,0.36084386,108080.0,108070.0,0.81636899]
[1761832263949,0.00092386,108080.0,108070.0,0.76646]
[1761832264351,0.02196386,108080.0,108070.0,0.76646]
[1761832264550,0.00092386,108080.0,108070.0,1.17174464]
[1761832264855,0.00092386,108080.0,108070.0,1.1053]
[1761832265042,0.00092386,108080.0,108070.0,0.76646]
[1761832265242,0.05814386,108080.0,108070.0,0.76646]
[1761832265441,0.07814386,108080.0,108070.0,0.76646]
[1761832265647,0.04478386,108080.0,108070.0,0.76646]
[1761832266051,0.00092386,108080.0,108070.0,0.76646]
[1761832266248,0.04478386,108080.0,108070.0,0.76646]
[1761832266844,0.04478386,108080.0,108070.0,0.81639684]
[1761832267050,0.00092386,108080.0,108070.0,0.81639684]
[1761832267452,0.35968386,108080.0,108070.0,0.81639684]
[1761832267650,0.38072386,108080.0,108070.0,0.81639684]
[1761832267858,0.96787151,108080.0,108070.0,0.04994756]
[1761832268157,0.05722,108060.0,108050.0,0.40542]
[1761832268450,0.44594,108060.0,108050.0,0.40542]
[1761832268651,0.43258,108060.0,108050.0,0.40542]
[1761832268857,0.41594,108060.0,108050.0,0.40542]
[1761832269056,0.41594,108060.0,108050.0,0.3608]
[1761832269057,0.91690765,108060.0,108050.0,0.3608]
[1761832269250,0.04386,108050.0,108040.0,0.42732277]
[1761832269556,0.05722,108040.0,108030.0,0.4274355]
[1761832269753,0.78690765,108040.0,108030.0,0.4274355]
[1761832269944,0.54494,108040.0,108030.0,0.4720555]
[1761832270144,0.54494,108040.0,108030.0,0.40553273]
[1761832270359,0.54294,108040.0,108030.0,0.40553273]
[1761832270563,0.54194,108040.0,108030.0,0.40553273]
[1761832270762,0.49187403,108040.0,108030.0,0.40553273]
[1761832271151,0.37858,108040.0,108030.0,0.40553273]
[1761832271869,0.03030899,108050.0,108040.0,0.04462]
[1761832272061,0.04386,108060.0,108050.0,0.04462]
[1761832272262,0.04386,108060.0,108050.0,0.40542]
[1761832272561,0.38254,108070.0,108060.0,0.04462]
[1761832272862,0.50254,108070.0,108060.0,0.40542]
[1761832273062,0.38254,108070.0,108060.0,0.40542]
[1761832273261,0.40254,108070.0,108060.0,0.40542]
[1761832273462,0.40254,108070.0,108060.0,0.04462]
[1761832273463,0.64254,108070.0,108060.0,0.04462]
[1761832273662,0.74247403,108070.0,108060.0,0.02265]
[1761832273865,0.04386,108060.0,108050.0,0.40542]
[1761832274566,0.02104,108060.0,108050.0,0.40542]
[1761832274967,0.05546,108060.0,108050.0,0.40542]
[1761832275158,0.02104,108060.0,108050.0,0.40542]
[1761832275467,0.58564765,108070.0,108060.0,0.04544]
[1761832275468,0.38873,108070.0,108060.0,0.04544]
[1761832275766,0.40673,108070.0,108060.0,0.40624]
[1761832275961,0.38665,108070.0,108060.0,0.40624]
[1761832276159,0.38565,108070.0,108060.0,0.40624]
[1761832276465,0.38565,108070.0,108060.0,0.65990765]
[1761832276466,0.003,108070.0,108060.0,0.65990765]
[1761832276762,0.04405,108090.0,108080.0,0.04544]
[1761832276965,0.38261,108090.0,108080.0,0.80029273]
[1761832277467,0.38261,108090.0,108080.0,0.39405273]
[1761832277468,0.94357765,108090.0,108080.0,0.39405273]
[1761832277661,1.29473441,108090.0,108080.0,0.03325273]
[1761832277858,0.93669441,108090.0,108080.0,0.03325273]
[1761832278075,0.04405,108080.0,108070.0,0.41666273]
[1761832278367,0.04405,108080.0,108070.0,0.39405273]
[1761832278368,0.58815765,108080.0,108070.0,0.39405273]
[1761832278759,0.04405,108070.0,108060.0,0.04544]
[1761832278954,0.81353765,108070.0,108060.0,0.04544]
[1761832279164,0.57257,108070.0,108060.0,0.40624]
[1761832279364,0.40257,108070.0,108060.0,0.40624]
[1761832279856,0.62353765,108070.0,108060.0,0.04544]
[1761832280061,0.95353765,108070.0,108060.0,0.02261]
[1761832280362,0.80553765,108070.0,108060.0,0.02261]
[1761832280770,0.80553765,108070.0,108060.0,0.40624]
[1761832280967,1.16633765,108070.0,108060.0,0.04544]
[1761832281273,0.04608,108060.0,108050.0,0.04488]
[1761832281566,0.04608,108050.0,108040.0,0.40568]
[1761832281761,0.43452,108050.0,108040.0,0.41849]
[1761832281959,0.0233,108040.0,108030.0,0.4505255]
[1761832282261,0.04608,108040.0,108030.0,0.4723155]
[1761832282768,0.06608,108040.0,108030.0,0.4723155]
[1761832283158,0.07955,108040.0,108030.0,0.4743155]
[1761832283866,0.58051765,108040.0,108030.0,0.00211273]
[1761832284065,0.58327765,108040.0,108030.0,0.00211273]
[1761832284370,1.04125168,108040.0,108030.0,0.00111273]
[1761832284570,1.04125168,108040.0,108030.0,0.00211273]
[1761832286173,0.04608,108000.0,107990.0,0.48814579]
[1761832286362,0.3844,108000.0,107990.0,0.48814579]
[1761832286566,0.33832,108000.0,107990.0,0.48814579]
[1761832286768,0.66131765,108020.0,108010.0,0.02309]
[1761832286972,0.84139077,108020.0,108010.0,0.08957407]
[1761832287172,1.17971077,108020.0,108010.0,0.08957407]
[1761832287369,1.17971077,108020.0,108010.0,0.47216407]
[1761832287370,0.38447312,108020.0,108010.0,0.47216407]
[1761832287568,0.41794312,108020.0,108010.0,0.47216407]
[1761832287968,1.0688448,108020.0,108010.0,0.45037407]
[1761832288174,1.0688448,108020.0,108010.0,0.45337407]
[1761832288469,0.9188448,108020.0,108010.0,0.38689]
[1761832288666,0.9216048,108020.0,108010.0,0.3638]
[1761832288863,0.9188448,108020.0,108010.0,0.3648]
[1761832289366,0.67787715,108020.0,108010.0,0.40968]
[1761832289573,0.9188448,108020.0,108010.0,0.40968]
[1761832289872,0.7788448,108020.0,108010.0,0.40968]
[1761832290072,0.7798448,108020.0,108010.0,0.40868]
[1761832290267,0.7798448,108020.0,108010.0,0.3638]
[1761832290572,1.0498448,108020.0,108010.0,0.3638]
[1761832290764,0.7115248,108020.0,108010.0,0.3618]
[1761832290961,1.0498048,108020.0,108010.0,0.3618]
[1761832291468,0.7115248,108020.0,108010.0,0.3618]
[1761832291668,1.0487648,108020.0,108010.0,0.3618]
[1761832291867,1.0487648,108020.0,108010.0,0.3608]
[1761832292064,0.10100715,108020.0,108010.0,0.64664765]
[1761832292269,0.00107312,108020.0,108010.0,0.40568]